fUSD/lending_fUSD_20240212
["ID","MTS","AMOUNT","RATE_DAILY","PERIOD"]
[313851629,1707753053729,-230.1805547,0.00029,2]
[313851630,1707753053739,-230.1805547,0.00029,2]
[313851631,1707753053749,-230.1805547,0.00029,2]
[313851632,1707753053759,-230.1805547,0.00029,2]
[313851633,1707753053769,-230.1805547,0.00029,2]
[313851634,1707753053779,-230.1805547,0.00029,2]
[313851635,1707753053788,-230.1805547,0.00029,2]
[313851636,1707753053799,-230.1805547,0.00029,2]
[313851637,1707753053809,-230.1805547,0.00029,2]
[313851638,1707753053819,-230.1805547,0.00029,2]
[313851639,1707753053828,-230.1805547,0.00029,2]
[313851640,1707753053838,-230.1805547,0.00029,2]
[313851641,1707753053849,-230.1805547,0.00029,2]
[313851642,1707753053859,-230.1805547,0.00029,2]
[313851643,1707753053869,-230.1805547,0.00029,2]
[313851644,1707753053879,-230.1805547,0.00029,2]
[313851645,1707753053889,-230.1805547,0.00029,2]
[313851646,1707753053898,-230.1805547,0.00029,2]
[313851647,1707753053907,-230.1805547,0.00029,2]
[313851648,1707753053917,-230.1805547,0.00029,2]
[313851649,1707753053926,-230.1805547,0.00029,2]
[313851650,1707753053936,-230.1805547,0.00029,2]
[313851651,1707753053945,-230.1805547,0.00029,2]
[313851652,1707753053955,-230.1805547,0.00029,2]
[313851653,1707753053964,-230.1805547,0.00029,2]
[313851654,1707753053973,-230.1805547,0.00029,2]
[313851655,1707753053983,-230.1805547,0.00029,2]
[313851656,1707753053993,-230.1805547,0.00029,2]
[313851657,1707753054006,-230.1805547,0.00029,2]
[313851658,1707753054025,-230.1805547,0.00029,2]
[313851659,1707753054037,-230.1805547,0.00029,2]
[313851660,1707753054047,-230.1805547,0.00029,2]
[313851661,1707753054057,-230.1805547,0.00029,2]
[313851662,1707753054066,-230.1805547,0.00029,2]
[313851663,1707753054076,-230.1805547,0.00029,2]
[313851664,1707753054085,-230.1805547,0.00029,2]
[313851665,1707753054095,-230.1805547,0.00029,2]
[313851666,1707753054104,-230.1805547,0.00029,2]
[313851667,1707753054113,-230.1805547,0.00029,2]
[313851668,1707753054123,-230.1805547,0.00029,2]
[313851669,1707753054132,-230.1805547,0.00029,2]
[313851670,1707753054141,-230.1805547,0.00029,2]
[313851671,1707753054151,-230.1805547,0.00029,2]
[313851672,1707753054161,-230.1805547,0.00029,2]
[313851673,1707753054170,-230.1805547,0.00029,2]
[313851674,1707753054179,-230.1805547,0.00029,2]
[313851675,1707753054189,-230.1805547,0.00029,2]
[313851676,1707753054198,-230.1805547,0.00029,2]
[313851677,1707753054207,-230.1805547,0.00029,2]
[313851678,1707753054217,-230.1805547,0.00029,2]
[313851679,1707753054226,-500.0,0.00029096,2]
[313851680,1707753054235,-1025.13,0.00029096,2]
[313851681,1707753054244,-500.0,0.00029096,2]
[313851682,1707753054254,-540.32,0.00029096,2]
[313851683,1707753054263,-836.01,0.00029096,2]
[313851684,1707753054273,-701.7,0.00029096,2]
[313851685,1707753054284,-500.0,0.00029096,2]
[313851686,1707753054293,-527.44,0.00029097,2]
[313851687,1707753054303,-1552.97,0.00029202,2]
[313851688,1707753054312,-500.0,0.00029202,2]
[313851689,1707753054321,-500.0,0.00029202,2]
[313851690,1707753054331,-561.33,0.00029202,2]
[313851691,1707753054340,-254.02709114,0.00029203,3]
[313851692,1707753054353,-500.0,0.00029203,2]
[313851693,1707753054363,-500.0,0.00029203,2]
[313851694,1707753054373,-500.0,0.00029203,2]
[313851695,1707753054382,-500.0,0.00029203,2]
[313851696,1707753054394,-1135.71,0.00029203,2]
[313851697,1707753054403,-833.33,0.00029203,2]
[313851698,1707753054414,-500.0,0.00029203,2]
[313851699,1707753054425,-500.0,0.00029203,2]
[313851700,1707753054436,-500.0,0.00029203,2]
[313851701,1707753054446,-500.0,0.00029203,2]
[313851702,1707753054456,-500.0,0.00029203,2]
[313851703,1707753054465,-1089.49,0.00029203,2]
[313851704,1707753054475,-832.0,0.00029203,2]
[313851705,1707753054485,-1429.47,0.00029203,2]
[313851706,1707753054495,-522.22,0.00029203,2]
[313851707,1707753054506,-500.0,0.00029203,2]
[313851708,1707753054516,-500.0,0.0002937,2]
[313851709,1707753054526,-1025.13,0.0002937,2]
[313851710,1707753054537,-500.0,0.0002937,2]
[313851711,1707753054547,-540.32,0.0002937,2]
[313851712,1707753054557,-836.01,0.0002937,2]
[313851713,1707753054567,-701.7,0.0002937,2]
[313851714,1707753054577,-500.0,0.0002937,2]
[313851715,1707753054588,-527.48,0.00029371,2]
[313851716,1707753054598,-1552.97,0.00029476,2]
[313851717,1707753054608,-500.0,0.00029476,2]
[313851718,1707753054618,-500.0,0.00029476,2]
[313851719,1707753054628,-561.33,0.00029476,2]
[313851720,1707753054637,-500.0,0.00029477,2]
[313851721,1707753054647,-500.0,0.00029477,2]
[313851722,1707753054657,-500.0,0.00029477,2]
[313851723,1707753054667,-500.0,0.00029477,2]
[313851724,1707753054676,-1135.71,0.00029477,2]
[313851725,1707753054686,-833.33,0.00029477,2]
[313851726,1707753054698,-500.0,0.00029477,2]
[313851727,1707753054707,-500.0,0.00029477,2]
[313851728,1707753054716,-192.37756314,0.00029477,2]
[313851729,1707753054726,-500.0,0.00029477,2]
[313851730,1707753054736,-500.0,0.00029477,2]
[313851731,1707753054745,-1089.49,0.00029477,2]
[313851732,1707753054755,-832.0,0.00029477,2]
[313851733,1707753054764,-1429.47,0.00029477,2]
[313851734,1707753054775,-522.22,0.00029477,2]
[313851735,1707753054788,-500.0,0.00029477,2]
[313851736,1707753054798,-228.3964544,0.000295,3]
[313851737,1707753054808,-4841.8871438,0.00029553,2]
[313851738,1707753054817,-191.492,0.00029553,2]
[313851739,1707753054827,-150.0,0.000296,2]
[313851740,1707753054837,-151.95567312,0.000296,2]
[313851741,1707753054846,-170.29948085,0.00029623,4]
[313851742,1707753054856,-500.0,0.00029644,2]
[313851743,1707753054868,-1025.13,0.00029644,2]
[313851744,1707753054878,-500.0,0.00029644,2]
[313851745,1707753054888,-540.32,0.00029644,2]
[313851746,1707753054898,-836.01,0.00029644,2]
[313851747,1707753054907,-701.7,0.00029644,2]
[313851748,1707753055169,-500.0,0.00029644,2]
[313851749,1707753055180,-1552.97,0.0002975,2]
[313851750,1707753055192,-500.0,0.0002975,2]
[313851751,1707753055203,-500.0,0.0002975,2]
[313851752,1707753055213,-561.33,0.0002975,2]
[313851753,1707753055223,-500.0,0.00029751,2]
[313851754,1707753055233,-500.0,0.00029751,2]
[313851755,1707753055243,-411.82,0.00029751,2]
[313851756,1707753055252,-500.0,0.00029751,2]
[313851757,1707753055264,-1135.71,0.00029751,2]
[313851758,1707753055273,-833.33,0.00029751,2]
[313851759,1707753055284,-500.0,0.00029751,2]
[313851760,1707753055294,-605.58,0.00029751,2]
[313851761,1707753055303,-500.0,0.00029751,2]
[313851762,1707753055312,-500.0,0.00029751,2]
[313851763,1707753055322,-1089.49,0.00029751,2]
[313851764,1707753055331,-832.0,0.00029751,2]
[313851765,1707753055341,-1429.47,0.00029751,2]
[313851766,1707753055351,-522.22,0.00029751,2]
[313851767,1707753055361,-500.0,0.00029751,2]
[313851768,1707753055370,-196.8,0.00029767,2]
[313851769,1707753055381,-1020.80344652,0.00029798,2]
[313851770,1707753055391,-176.48526302,0.000298,2]
[313851771,1707753055401,-1077.25,0.00029815,2]
[313851772,1707753055411,-200.0,0.0002983,3]
[313851773,1707753055421,-36365.4644917,0.00029894,2]
[313851774,1707753055430,-180383.05400568,0.00029896,7]
[313851775,1707753055448,-4455.0,0.00029896,7]
[313851776,1707753055466,-500.0,0.00026737,2]
[313851777,1707753055476,-2264.6,0.00029896,7]
[313851778,1707753055488,-10095.28925401,0.00029896,7]
[313851779,1707753055526,-150.0,0.00026736,2]
[313851780,1707753055539,-500.0,0.00027284,2]
[313851781,1707753055549,-500.0,0.00029203,2]
[313851782,1707753055560,-500.0,0.00029203,2]
[313851783,1707753055570,-2802.05674031,0.00029896,7]
[313851784,1707753055580,-500.0,0.00029918,2]
[313851785,1707753055590,-1025.13,0.00029918,2]
[313851786,1707753055600,-154.550612,0.00029918,2]
[313851787,1707753055614,-345.449388,0.00029918,2]
[313851788,1707753055624,-540.32,0.00029918,2]
[313851789,1707753055633,-836.01,0.00029918,2]
[313851790,1707753055643,-701.7,0.00029918,2]
[313851791,1707753055653,-500.0,0.00029918,2]
[313851792,1707753055663,-803.2,0.00029994,2]
[313851793,1707753055674,-748.56850825,0.00029997,2]
[313851794,1707753055689,-50000.0,0.0003,2]
[313851795,1707753055700,-1592.80653536,0.0003,4]
[313851796,1707753055710,-2655.70887327,0.0003,4]
[313851797,1707753055720,-1974.49802756,0.0003,4]
[313851798,1707753055731,-456.09636601,0.0003,4]
[313851799,1707753055741,-360.06771643,0.0003,2]
[313851800,1707753055751,-9691.84851642,0.0003,2]
[313851801,1707753055762,-405.69661998,0.0003,4]
[313851802,1707753055772,-1817.46566731,0.0003,4]
[313851803,1707753055784,-1176.20171541,0.0003,4]
[313851804,1707753055795,-155.0,0.0003,4]
[313851805,1707753055805,-819.35604388,0.0003,4]
[313851806,1707753055814,-911.20722036,0.0003,4]
[313851807,1707753055823,-155.0,0.0003,2]
[313851808,1707753055832,-155.0,0.0003,2]
[313851809,1707753055843,-19148.63208535,0.0003,4]
[313851810,1707753055853,-155.0,0.0003,4]
[313851811,1707753055862,-3099.86756131,0.0003,4]
[313851812,1707753055872,-4207.70203142,0.0003,2]
[313851813,1707753055883,-120690.68586442,0.0003,2]
[313851814,1707753055895,-4948.6,0.0003,2]
[313851815,1707753055907,-2762.7432,0.0003,2]
[313851816,1707753055919,-24628.3384279,0.0003,2]
[313851817,1707753055932,-1241.125,0.0003,2]
[313851818,1707753056410,248.85176922,0.00022967,2]
[313851819,1707753056464,5212.35686383,0.00022967,2]
[313851820,1707753056605,190.71379193,0.00022967,7]
[313851821,1707753056725,1708.17703497,0.00019024,2]
[313851822,1707753056746,4137.79682769,0.00019024,2]
[313851823,1707753056882,155.18728888,0.00022967,2]
[313851824,1707753056953,226.97466518,0.00022967,2]
[313851825,1707753056982,158.63592308,0.00022967,2]
[313851826,1707753057008,1102.30328697,0.00022967,2]
[313851827,1707753057237,362.92778209,0.00022967,2]
[313851828,1707753057473,287.90161797,0.00022967,2]
[313851829,1707753058009,268.05165217,0.00022967,2]
[313851830,1707753059558,909.41463107,0.00022967,2]
[313851831,1707753059977,156.57784203,0.00022967,2]
[313851832,1707753060594,19047.95231035,0.00022967,2]
[313851834,1707753062308,6109.26214798,0.00022967,2]
[313851835,1707753064614,155.0,0.00022967,2]
[313851836,1707753065916,4594.2461711,0.00022852,2]
[313851837,1707753070201,20420.66098,0.00023,2]
[313851838,1707753070229,235022.89856141,0.00023,2]
[313851839,1707753073405,362.92778209,0.00022967,2]
[313851840,1707753076482,312.7416436,0.00021559,2]
[313851841,1707753077902,5845.97386266,0.00019023,2]
[313851842,1707753080008,268.05165217,0.00022967,2]
[313851843,1707753081504,731.47698271,0.00022967,2]
[313851844,1707753082230,213.99,0.00023,2]
[313851845,1707753088624,155.0,0.00022967,2]
[313851846,1707753093397,473.81915554,0.00022967,2]
[313851847,1707753095887,5845.97386266,0.00019021,2]
[313851848,1707753100025,268.05165217,0.00022967,2]
[313851849,1707753102011,43257.15532963,0.000229,3]
[313851850,1707753102040,10877.11267686,0.000229,3]
[313851851,1707753113893,5845.97386266,0.00019021,2]
[313851852,1707753114175,9872.96171532,0.00015,10]
[313851853,1707753128298,155.0,0.00022899,30]
[313851854,1707753129904,5845.97386266,0.00017174,2]
[313851856,1707753146290,155.0,0.00022897,30]
[313851857,1707753148193,5845.97386266,0.00017173,2]
[313851858,1707753148831,1890.04752568,0.00015,2]
[313851861,1707753166285,195.96939684,0.00022897,30]
[313851862,1707753167902,5845.97386266,0.00017173,2]
[313851864,1707753186699,181.56,0.00021863,2]
[313851865,1707753189910,5845.97386266,0.00017173,2]
[313851866,1707753196023,1458.38335766,0.0001305,2]
[313851867,1707753196422,239.83943305,0.000101,2]
[313851868,1707753207897,5845.97386266,0.00017173,2]
[313851869,1707753227900,5845.97386266,0.00017173,2]
[313851870,1707753247900,5845.97386266,0.00017173,2]
[313851871,1707753250092,32530.00235223,0.0002,2]
[313851872,1707753250665,174.83157965,0.00020607,2]
[313851873,1707753267905,301.06599353,0.00017173,2]
[313851876,1707753443729,227.91,0.00022345,2]
[313851877,1707753450187,2211.64,0.00022344,2]
[313851878,1707753456760,250.0,0.00022344,2]
[313851879,1707753458266,7106.13,0.00022344,2]
[313851881,1707753492798,11140.6,0.00022344,2]
[313851882,1707753517285,11138.07,0.00022344,2]
[313851883,1707753521571,2000.0,0.00022344,2]
[313851884,1707753528453,200.0,0.00022232,30]
[313851885,1707753528479,200.0,0.00022232,30]
[313851886,1707753528509,200.0,0.00022232,30]
[313851887,1707753528538,225.51292639,0.00022232,30]
[313851889,1707753531164,200.0,0.00022232,30]
[313851891,1707753579655,2989.56,0.00022193,2]
[313851892,1707753592599,-155.0,0.00022528,2]
[313851893,1707753592621,-3045.88772392,0.00022528,2]
[313851894,1707753592642,-4650.94335151,0.00022529,2]
[313851895,1707753592664,-1957.34969805,0.00022529,2]
[313851896,1707753592685,-366.06042699,0.00022529,2]
[313851897,1707753592706,-1862.12656085,0.00022529,2]
[313851898,1707753592728,-504.10893426,0.0002253,2]
[313851899,1707753592750,-988.09699467,0.0002253,2]
[313851900,1707753592772,-2605.5728343,0.00022531,2]
[313851901,1707753592794,-494.68758904,0.00022531,2]
[313851902,1707753592815,-5057.90674504,0.00022531,2]
[313851903,1707753592836,-2157.90997305,0.00022532,2]
[313851904,1707753592858,-221.60779423,0.00022532,2]
[313851905,1707753592882,-4867.89255788,0.00022532,2]
[313851906,1707753592903,-2488.34972956,0.00022533,2]
[313851907,1707753592927,-130041.10966952,0.00022544,2]
[313851908,1707753592949,-678.72,0.00022545,2]
[313851909,1707753592973,-300.0,0.00022785,2]
[313851910,1707753592994,-150.0,0.00022785,2]
[313851911,1707753593016,-150.0,0.00022785,2]
[313851912,1707753593038,-504.95493302,0.00022788,2]
[313851913,1707753593059,-622.31,0.00022788,2]
[313851914,1707753593081,-770.66386256,0.00022796,2]
[313851915,1707753593102,-7433.76384141,0.00022796,2]
[313851916,1707753593122,-354.22,0.00022796,2]
[313851917,1707753593143,-8160.02,0.00022796,2]
[313851918,1707753593164,-13573.92209149,0.00022797,2]
[313851919,1707753593188,-364.44524763,0.00022797,2]
[313851920,1707753593211,-13043.4286,0.00022799,2]
[313851921,1707753593232,-5916.41807169,0.000228,2]
[313851922,1707753593253,-526.33973978,0.00022897,2]
[313851923,1707753593276,-248.63179111,0.00022897,2]
[313851924,1707753593297,-168.52542376,0.00022897,2]
[313851925,1707753593318,-2791.56476332,0.00022897,2]
[313851926,1707753593341,-169.46288033,0.00022897,2]
[313851927,1707753593363,-204.09193433,0.00022897,2]
[313851928,1707753593388,-361.54326996,0.00022898,2]
[313851929,1707753593410,-2146.56081772,0.00022898,2]
[313851930,1707753593431,-4181.99,0.00022898,2]
[313851931,1707753593453,-150.99,0.00022898,2]
[313851932,1707753593476,-1658.07,0.00022898,2]
[313851933,1707753593499,-500.0,0.00022899,2]
[313851934,1707753593521,-500.0,0.00022899,2]
[313851935,1707753593544,-500.0,0.00022899,2]
[313851936,1707753593566,-500.0,0.00022899,2]
[313851937,1707753593589,-1529.7,0.00022899,2]
[313851938,1707753593610,-500.0,0.00022899,2]
[313851939,1707753593632,-500.0,0.00022899,2]
[313851940,1707753593656,-500.0,0.00022899,2]
[313851941,1707753593678,-500.0,0.00022899,2]
[313851942,1707753593701,-559.55,0.00022899,2]
[313851943,1707753593725,-500.0,0.00022899,2]
[313851944,1707753593750,-500.0,0.00022899,2]
[313851945,1707753593774,-2392.87,0.00022899,2]
[313851946,1707753593796,-500.0,0.00022899,2]
[313851947,1707753593818,-500.0,0.00022899,2]
[313851948,1707753593840,-500.0,0.00022899,2]
[313851949,1707753593863,-500.0,0.00022899,2]
[313851950,1707753593887,-814.13,0.00022899,2]
[313851951,1707753593909,-500.0,0.00022899,2]
[313851952,1707753593931,-500.0,0.00022899,2]
[313851953,1707753593955,-523.06,0.00022899,2]
[313851954,1707753593981,-500.0,0.00022899,2]
[313851955,1707753594004,-500.0,0.00022899,2]
[313851956,1707753594026,-500.0,0.00022899,2]
[313851957,1707753594048,-500.0,0.00022899,2]
[313851958,1707753594069,-500.0,0.00022899,2]
[313851959,1707753594091,-500.0,0.00022899,2]
[313851960,1707753594113,-500.0,0.00022899,2]
[313851961,1707753594136,-540.12,0.00022899,2]
[313851962,1707753594157,-500.0,0.00022899,2]
[313851963,1707753594181,-500.0,0.00022899,2]
[313851964,1707753594203,-1218.42,0.00022899,2]
[313851965,1707753594226,-500.0,0.00022899,2]
[313851966,1707753594247,-706.87,0.00022899,2]
[313851967,1707753594268,-500.0,0.00022899,2]
[313851968,1707753594290,-500.0,0.00022899,2]
[313851969,1707753594313,-522.18,0.00022899,2]
[313851970,1707753594335,-1849.22,0.00022899,2]
[313851971,1707753594356,-500.0,0.00022899,2]
[313851972,1707753594378,-500.0,0.00022899,2]
[313851973,1707753594406,-500.0,0.00022899,2]
[313851974,1707753594447,-500.0,0.00022899,2]
[313851975,1707753594561,-500.0,0.00022899,2]
[313851976,1707753594593,-500.0,0.00022899,2]
[313851977,1707753594614,-500.0,0.00022899,2]
[313851978,1707753594637,-575.51,0.00022899,2]
[313851979,1707753594659,-500.0,0.00022899,2]
[313851980,1707753594686,-628.57,0.00022899,2]
[313851981,1707753594710,-996.74,0.00022899,2]
[313851982,1707753594732,-1082.13,0.00022899,2]
[313851983,1707753594754,-500.0,0.00022899,2]
[313851984,1707753594775,-500.0,0.00022899,2]
[313851985,1707753594799,-500.0,0.00022899,2]
[313851986,1707753594821,-500.0,0.00022899,2]
[313851987,1707753594843,-857.55,0.00022899,2]
[313851988,1707753594866,-500.0,0.00022899,2]
[313851989,1707753594888,-500.0,0.00022899,2]
[313851990,1707753594909,-500.0,0.00022899,2]
[313851991,1707753594931,-500.0,0.00022899,2]
[313851992,1707753594955,-500.0,0.00022899,2]
[313851993,1707753594979,-519.11,0.00022899,2]
[313851994,1707753595000,-500.0,0.00022899,2]
[313851995,1707753595023,-636.47,0.00022899,2]
[313851996,1707753595046,-500.0,0.00022899,2]
[313851997,1707753595067,-500.0,0.00022899,2]
[313851998,1707753595090,-535.09,0.00022899,2]
[313851999,1707753595112,-500.0,0.00022899,2]
[313852000,1707753595133,-706.02,0.00022899,2]
[313852001,1707753595155,-1194.89,0.00022899,2]
[313852002,1707753595177,-500.0,0.00022899,2]
[313852003,1707753595199,-500.0,0.00022899,2]
[313852004,1707753595429,-1389.0,0.00022899,2]
[313852005,1707753595454,-500.0,0.00022899,2]
[313852006,1707753595478,-500.0,0.00022899,2]
[313852007,1707753595501,-535.85,0.00022899,2]
[313852008,1707753595522,-500.0,0.00022899,2]
[313852009,1707753595554,-500.0,0.00022899,2]
[313852010,1707753595580,-500.0,0.00022899,2]
[313852011,1707753595605,-3317.68,0.00022899,2]
[313852012,1707753595628,-667.49,0.00022899,2]
[313852013,1707753595651,-500.0,0.00022899,2]
[313852014,1707753595675,-945865.73199351,0.000229,3]
[313852015,1707753595697,-156.7537296,0.00022967,2]
[313852016,1707753595721,-246.98477686,0.00022967,2]
[313852017,1707753595743,-2608.04294306,0.00023,2]
[313852018,1707753595765,-368553.09066471,0.00023,2]
[313852019,1707753596015,500.0,0.00022899,2]
[313852020,1707753597086,500.0,0.00022899,2]
[313852021,1707753599273,550.62,0.00022899,2]
[313852022,1707753599751,500.0,0.00022899,2]
[313852023,1707753603271,536.23,0.00022899,2]
[313852024,1707753605361,500.0,0.00022899,2]
[313852025,1707753605413,299.52029775,0.00022542,2]
[313852026,1707753608637,500.0,0.00022899,2]
[313852027,1707753609263,681.65,0.00022899,2]
[313852028,1707753609765,500.0,0.00022899,2]
[313852029,1707753610457,500.0,0.00022899,2]
[313852030,1707753611135,500.0,0.00022899,2]
[313852031,1707753611985,180.88576988,0.00022899,2]
[313852032,1707753612842,500.0,0.00022899,2]
[313852033,1707753613613,500.0,0.00022899,2]
[313852034,1707753615485,1278.10313791,0.00022476,2]
[313852035,1707753615513,500.0,0.00022899,2]
[313852036,1707753616702,500.0,0.00022899,2]
[313852037,1707753616794,500.0,0.00022899,2]
[313852038,1707753617329,500.0,0.00022899,2]
[313852039,1707753617582,1465.97,0.00022899,2]
[313852040,1707753618737,554.17793398,0.00022899,2]
[313852041,1707753619631,500.0,0.00022899,2]
[313852042,1707753619658,500.0,0.00022899,2]
[313852043,1707753620135,2357.87,0.00022899,2]
[313852044,1707753622640,500.0,0.00022899,2]
[313852045,1707753624308,500.0,0.00022899,2]
[313852046,1707753624461,500.0,0.00022899,2]
[313852047,1707753625183,500.0,0.00022899,2]
[313852048,1707753625291,500.0,0.00022899,2]
[313852049,1707753626888,200.0,0.00022982,2]
[313852050,1707753628710,500.0,0.00022899,2]
[313852051,1707753630033,500.0,0.00022899,2]
[313852052,1707753630240,500.0,0.00022899,2]
[313852053,1707753630304,500.0,0.00022899,2]
[313852054,1707753630646,500.0,0.00022899,2]
[313852055,1707753630685,500.0,0.00022899,2]
[313852056,1707753631093,500.0,0.00022899,2]
[313852057,1707753631162,500.0,0.00022899,2]
[313852058,1707753632331,884.30799886,0.00022232,2]
[313852059,1707753633117,500.0,0.00022899,2]
[313852060,1707753633515,500.0,0.00022899,2]
[313852061,1707753634278,500.0,0.00022899,2]
[313852062,1707753635211,500.0,0.00022899,2]
[313852063,1707753636104,500.0,0.00022899,2]
[313852064,1707753636160,500.0,0.00022899,2]
[313852065,1707753637507,500.0,0.00022899,2]
[313852066,1707753637900,500.0,0.00022899,2]
[313852067,1707753638277,500.0,0.00022899,2]
[313852068,1707753638912,500.0,0.00022899,2]
[313852069,1707753639113,500.0,0.00022899,2]
[313852070,1707753641107,500.0,0.00022899,2]
[313852071,1707753642807,500.0,0.00022899,2]
[313852072,1707753643011,500.0,0.00022899,2]
[313852073,1707753643398,500.0,0.00022899,2]
[313852074,1707753643446,417.90286481,0.00022899,2]
[313852075,1707753644236,500.0,0.00022899,2]
[313852076,1707753645173,616.42,0.00022899,2]
[313852077,1707753645800,500.0,0.00022899,2]
[313852078,1707753645830,500.0,0.00022899,2]
[313852079,1707753646476,630.07,0.00022899,2]
[313852080,1707753646862,500.0,0.00022899,2]
[313852081,1707753647305,500.0,0.00022899,2]
[313852082,1707753647812,500.0,0.00022899,2]
[313852083,1707753649581,500.0,0.00022899,2]
[313852084,1707753650290,500.0,0.00022899,2]
[313852085,1707753650712,500.0,0.00022899,2]
[313852086,1707753651707,539.60769819,0.00022899,2]
[313852087,1707753652159,500.0,0.00022899,2]
[313852088,1707753653920,500.0,0.00022899,2]
[313852089,1707753654632,500.0,0.00022899,2]
[313852090,1707753655464,2915.21,0.00022899,2]
[313852091,1707753656004,500.0,0.00022899,2]
[313852092,1707753656614,500.0,0.00022899,2]
[313852093,1707753657373,500.0,0.00022899,2]
[313852094,1707753657713,500.0,0.00022899,2]
[313852095,1707753658025,277.18,0.00022899,2]
[313852096,1707753658053,500.0,0.00022899,2]
[313852097,1707753659821,500.0,0.00022899,2]
[313852098,1707753660101,500.0,0.00022899,2]
[313852099,1707753661285,523.71,0.00022899,2]
[313852100,1707753662198,500.0,0.00022899,2]
[313852101,1707753663073,500.0,0.00022899,2]
[313852102,1707753663206,500.0,0.00022899,2]
[313852103,1707753665610,500.0,0.00022899,2]
[313852104,1707753666294,180.28,0.00021136,2]
[313852105,1707753666707,500.0,0.00022899,2]
[313852106,1707753667159,736.07,0.00022899,2]
[313852107,1707753667257,501.27,0.00022899,2]
[313852108,1707753667845,500.0,0.00022899,2]
[313852109,1707753668666,500.0,0.00022899,2]
[313852110,1707753669559,821.87,0.00022899,2]
[313852111,1707753669930,500.0,0.00022899,2]
[313852112,1707753670352,500.0,0.00022899,2]
[313852113,1707753671648,500.0,0.00022899,7]
[313852114,1707753672578,500.0,0.00022899,2]
[313852115,1707753672714,500.0,0.00022899,2]
[313852116,1707753673635,635.27,0.00022899,2]
[313852117,1707753673904,500.0,0.00022899,2]
[313852118,1707753675956,500.0,0.00022899,2]
[313852119,1707753676436,636.85,0.00022899,2]
[313852120,1707753677520,500.0,0.00022899,2]
[313852121,1707753678051,500.0,0.00022899,2]
[313852122,1707753678233,1885.03,0.00022899,2]
[313852123,1707753678512,500.0,0.00022899,2]
[313852124,1707753678903,500.0,0.00022899,2]
[313852125,1707753678972,508.38,0.00022899,2]
[313852126,1707753680039,500.0,0.00022899,2]
[313852127,1707753682310,500.0,0.00022899,2]
[313852128,1707753684491,500.0,0.00022899,2]
[313852129,1707753684921,500.0,0.00022899,2]
[313852130,1707753689172,500.0,0.00022899,2]
[313852131,1707753689621,500.0,0.00022899,2]
[313852132,1707753692026,1214.97,0.00022899,2]
[313852133,1707753692058,500.0,0.00022899,2]
[313852134,1707753692920,500.0,0.00022899,2]
[313852135,1707753693227,500.0,0.00022899,2]
[313852136,1707753695547,587.30650673,0.00022899,2]
[313852137,1707753697078,234.08850816,0.00022899,2]
[313852138,1707753697306,500.0,0.00022899,2]